[Event "Gibraltar Challengers A 2019"]
[Site "Caleta"]
[Date "2019.01.23"]
[Round "3"]
[White "Rodriguez Perez, Angel Mariano"]
[Black "Villar Reymundo, Juan Antonio"]
[Result "1-0"]
[ECO "B25"]
[WhiteElo "2204"]
[BlackElo "2237"]
[Annotator "NA"]
[PlyCount "83"]
[EventDate "2019.01.18"]
[EventType "swiss"]
[EventCountry "GGB"]
[SourceTitle "playchess.com"]
[Source "ChessBase"]
[SourceQuality "1"]
[TimeControl "6600+10"]

{[%evp 8,67,12,6,13,32767,-11,32767,32767,3,32767,-26,-5,-25,2,-20,-12,-27,16,20,27,40,32767,32767,32767,32767,32767,32767,32767,32767,32767,32767,28,32767,32767,32767,-24,32767,-14,-21,-35,-27,32767,-19,-12,-31,0,0,32767,0,32767,32767,32767,0,186,173,32767,172,200,32767,32767,39]} 1. e4 {[%emt 0:00:54]} c5 {[%emt 0:00:50]} 2. Nc3 {[%emt 0:00:00]} Nc6 {[%emt 0:00:04]} 3. g3 {[%emt 0:00:00]} g6 {[%emt 0:00:15]} 4. Bg2 {[%emt 0:00:00]} Bg7 {[%emt 0:00:04]} 5. d3 {[%emt 0:00:00]} d6 {[%emt 0:00:05]} 6. f4 {[%emt 0:01:30]} e6 {[%emt 0:00:19] LiveBook: 1381 Games} 7. Nf3 {[%emt 0:01:04]} Nge7 {[%emt 0:00:06]} 8. O-O {[%emt 0:00:20]} O-O {[%emt 0:00:05]} 9. Rb1 {[%emt 0:00:57]} b6 {[%emt 0:01:07]} 10. Be3 {[%emt 0:02:32]} Ba6 {[%emt 0:03:45] B25: Closed Sicilian: 3 g3, lines without early Be3} (10... Bb7 11. Ne2 d5 12. a3 dxe4 13. dxe4 Qc7 14. Qe1 Rad8 15. Bd2 Rd7 16. Rf2 Rfd8 17. Bc3 Nd4 18. Bxd4 cxd4 {½-½ (61) Dimov,I (2457)-Pheby,I (2484) ICCF email 2007}) 11. Re1 {[%emt 0:01:21]} Qc7 {[%emt 0:03:26]} 12. a4 $146 {[%emt 0:02:03]} ({Predecessor:} 12. Bf2 Rac8 13. Ne2 Rfe8 14. c3 Bb7 15. Qd2 d5 16. e5 Red8 17. d4 c4 18. g4 {0-1 (45) Franco Rincon,D (1696)-Zhynguel Ramirez de Verge,A (1586) Madrid 2012}) 12... Rad8 {[%emt 0:06:04]} 13. Nb5 {[%emt 0:03:14]} Qb8 {[%emt 0:00:45]} 14. c3 {[%emt 0:02:22]} Bb7 {[%emt 0:36:01]} 15. Bf2 {[%emt 0:05:53]} a6 {[%emt 0:12:35]} 16. Na3 {[%emt 0:00:14]} Qc7 {[%emt 0:08:05]} 17. Nc2 {[%emt 0:04:20]} h6 {[%emt 0:02:28]} 18. Qe2 {[%emt 0:01:14]} Rfe8 {[%emt 0:02:44]} 19. d4 {[%emt 0:02:11]} Kh7 {[%emt 0:01:31]} 20. e5 {[%emt 0:02:49]} cxd4 {[%emt 0:03:10]} 21. exd6 {[%emt 0:03:10]} Rxd6 {[%emt 0:00:56]} 22. Ncxd4 {[%emt 0:00:43]} Nxd4 {[%emt 0:02:26]} 23. Nxd4 {[%emt 0:00:50]} Bxg2 {[%emt 0:01:19]} 24. Kxg2 {[%emt 0:00:07]} Nc6 {[%emt 0:04:24]} 25. Nf3 {[%emt 0:06:28]} Qb7 {[%emt 0:00:20]} 26. Qe4 {[%emt 0:02:18]} f5 {[%emt 0:11:06]} 27. Qe3 {[%emt 0:00:20]} e5 {[%emt 0:01:14]} 28. Qxb6 {[%emt 0:08:37]} Qxb6 {[%emt 0:04:12]} 29. Bxb6 {[%emt 0:00:07]} e4 {[%emt 0:00:03]} 30. Ng1 {[%emt 0:00:44]} Nb4 $2 {[%emt 0:03:11]} (30... Ne5 $11) 31. Bc5 {[%emt 0:02:26]} Rd2+ {[%emt 0:00:01]} 32. Re2 {[%emt 0:00:20]} Rxe2+ {[%emt 0:00:01]} 33. Nxe2 {[%emt 0:00:08]} Nd3 {[%emt 0:00:01]} 34. Bd4 $14 {[%emt 0:00:40]} (34. Be3 $18) 34... Bf8 {[%emt 0:00:01]} 35. b4 {[%emt 0:03:53]} g5 {[%emt 0:00:01]} 36. Kf1 {[%emt 0:01:07]} Bd6 {[%emt 0:00:03]} 37. Be3 {[%emt 0:02:15]} gxf4 {[%emt 0:00:33]} 38. Nxf4 {[%emt 0:00:26]} Bxf4 {[%emt 0:01:01]} 39. Bxf4 {[%emt 0:00:31]} e3 {[%emt 0:00:08]} 40. Ke2 {[%emt 0:00:32]} Nxf4+ {[%emt 0:00:22]} 41. gxf4 {[%emt 0:00:05]} Re4 {[%emt 0:00:00]} 42. b5 {[%emt 0:00:36]} 1-0

[Event "Gibraltar Challengers A 2019"]
[Site "Caleta"]
[Date "2019.01.23"]
[Round "3"]
[White "Saber, Yasser"]
[Black "Verneuil, Pascal"]
[Result "0-1"]
[ECO "A07"]
[WhiteElo "2201"]
[BlackElo "2114"]
[Annotator "NA"]
[PlyCount "68"]
[EventDate "2019.01.18"]
[EventType "swiss"]
[EventCountry "GGB"]
[SourceTitle "playchess.com"]
[Source "ChessBase"]
[SourceQuality "1"]
[TimeControl "6600+10"]

1. d3 {[%emt 0:00:00]} d5 {[%emt 0:00:00]} 2. g3 {[%emt 0:00:00]} e5 {[%emt 0:00:10]} 3. Nf3 {[%emt 0:00:00]} Nc6 {[%emt 0:01:06]} 4. Bg2 {[%emt 0:00:04]} Nf6 {[%emt 0:00:35]} 5. O-O {[%emt 0:00:05]} Bg4 {[%emt 0:01:34]} 6. h3 {[%emt 0:00:02] A07: Réti Opening: New York and Capablanca Systems} (6. Nbd2 Bc5 7. c4 d4 8. b4 Bxb4 9. Nxe5 Nxe5 10. Qa4+ Nc6 11. Bxc6+ bxc6 12. Qxb4 Nd7 13. Ne4 c5 14. Nxc5 {½-½ (36) Vachier Lagrave,M (2703)-Kramnik,V (2791) Moscow 2010}) 6... Bf5 {[%emt 0:00:23]} 7. Bg5 {[%emt 0:01:10]} Be7 {[%emt 0:02:04]} 8. c4 $146 {[%emt 0:02:01]} ({Predecessor:} 8. Nc3 Qd7 9. Kh2 Be6 10. e4 d4 11. Ne2 h6 {1-0 (27) Heerlein,G (1755)-Herberich,M (1726) Wuerzburg 2007}) 8... d4 {[%emt 0:02:52]} 9. b4 {[%emt 0:08:21]} Nd7 {[%emt 0:01:55]} 10. Bxe7 {[%emt 0:03:54]} Nxe7 {[%emt 0:00:06]} 11. Re1 {[%emt 0:04:54]} O-O {[%emt 0:00:31]} 12. e3 {[%emt 0:00:23]} dxe3 {[%emt 0:00:28]} 13. Rxe3 {[%emt 0:00:36]} Ng6 {[%emt 0:14:43]} 14. d4 {[%emt 0:17:15]} Nb6 {[%emt 0:00:00]} (14... e4 $11) 15. Na3 {[%emt 0:01:19]} (15. Nxe5 $16 Re8 16. Nxg6 (16. Bxb7 Nxe5 17. Bxa8 Nbxc4 $11) 16... Rxe3 17. fxe3 Bxg6 18. Nd2 (18. Bxb7 Rb8 $11)) 15... a5 {[%emt 0:00:00]} ({Black should play} 15... e4 $14) 16. b5 {[%emt 0:00:15]} exd4 {[%emt 0:05:42]} 17. Nxd4 {[%emt 0:07:38]} Bc8 {[%emt 0:00:08]} 18. Nb3 {[%emt 0:05:04]} Qf6 {[%emt 0:14:34]} ({Black should play} 18... a4) 19. Nc5 {[%emt 0:13:36]} Ne5 {[%emt 0:05:45]} 20. Rc1 {[%emt 0:02:36]} Nbd7 {[%emt 0:23:17]} 21. Ne4 {[%emt 0:04:01]} Qh6 {[%emt 0:02:46]} 22. f4 {[%emt 0:08:56]} Nf6 {[%emt 0:13:30]} 23. Nxf6+ {[%emt 0:05:51]} gxf6 {[%emt 0:00:05]} 24. Qd4 {[%emt 0:05:28]} Ng6 {[%emt 0:00:12]} 25. Qxf6 {[%emt 0:01:34]} Bxh3 {[%emt 0:00:31]} 26. Bxb7 {[%emt 0:02:33]} Rae8 {[%emt 0:02:40]} 27. Nc2 {[%emt 0:09:52]} Rd8 {[%emt 0:05:16]} 28. Bd5 {[%emt 0:00:31]} Rd6 $16 {[%emt 0:00:22]} 29. Qg5 {[%emt 0:00:44]} Qg7 {[%emt 0:00:26]} 30. Kh2 {[%emt 0:05:37]} h6 {[%emt 0:01:22]} 31. Qh5 {[%emt 0:00:07]} Be6 {[%emt 0:00:13]} 32. f5 {[%emt 0:00:36]} Bxd5 {[%emt 0:00:13]} 33. cxd5 {[%emt 0:00:16]} Ne5 {[%emt 0:00:13]} 34. Nd4 {[%emt 0:00:09]} Ng4+ {[%emt 0:00:10]} 0-1

[Event "Gibraltar Challengers A 2019"]
[Site "Caleta"]
[Date "2019.01.23"]
[Round "3"]
[White "Onabogun, Kolade"]
[Black "Bujakevich, Aleksandr"]
[Result "1-0"]
[ECO "C87"]
[WhiteElo "2189"]
[BlackElo "2054"]
[Annotator "NA"]
[PlyCount "83"]
[EventDate "2019.01.18"]
[EventType "swiss"]
[EventCountry "GGB"]
[SourceTitle "playchess.com"]
[Source "ChessBase"]
[SourceQuality "1"]
[TimeControl "6600+10"]

1. e4 {[%emt 0:45:07]} e5 {[%emt 0:01:35]} 2. Nf3 {[%emt 0:00:00]} Nc6 {[%emt 0:00:14]} 3. Bb5 {[%emt 0:00:00]} a6 {[%emt 0:00:20]} 4. Ba4 {[%emt 0:00:00]} Nf6 {[%emt 0:00:26]} 5. O-O {[%emt 0:00:00]} d6 {[%emt 0:01:16]} 6. c3 {[%emt 0:00:00]} Bg4 {[%emt 0:05:57]} 7. Re1 {[%emt 0:00:00]} Be7 {[%emt 0:05:03]} 8. d3 {[%emt 0:00:00]} O-O {[%emt 0:04:09]} 9. Nbd2 {[%emt 0:00:00] LiveBook: 80 Games} d5 {[%emt 0:06:26] C87: Closed Ruy Lopez: Steinitz-type lines after 6 Re1 d6} (9... Nd7 10. h3 Bh5 11. Bc2 Nb6 12. Nf1 d5 13. Ng3 Bg6 14. Qe2 Re8 15. Be3 Qd6 16. Bxb6 cxb6 17. h4 h6 18. Bb3 d4 19. cxd4 Nxd4 20. Nxd4 Qxd4 {1-0 (45) So,W (2786)-Onischuk,A (2672) Saint Louis 2018}) 10. h3 {[%emt 0:00:00]} Bxf3 {[%emt 0:11:05]} 11. Qxf3 {[%emt 0:00:00]} b5 $146 {[%emt 0:04:00]} ({Predecessor:} 11... d4 12. Bxc6 bxc6 13. Nc4 Bd6 14. Bg5 Re8 15. cxd4 exd4 16. e5 Bb4 17. Red1 {1-0 (42) Klausmeier,A-Guddat,L Sueder 1996}) 12. exd5 {[%emt 0:00:00]} Qxd5 {[%emt 0:14:59]} 13. Bb3 {[%emt 0:00:00]} Qxf3 {[%emt 0:08:22]} 14. Nxf3 {[%emt 0:00:00]} Bd6 {[%emt 0:00:39]} 15. a4 {[%emt 0:00:00]} h6 {[%emt 0:05:17]} 16. Bd2 {[%emt 0:00:00]} Rfe8 {[%emt 0:05:48]} 17. Ra2 {[%emt 0:00:00]} Na5 {[%emt 0:10:00]} 18. Bc2 {[%emt 0:00:00]} b4 {[%emt 0:06:00]} 19. cxb4 {[%emt 0:00:00]} Nc6 {[%emt 0:00:42]} 20. a5 {[%emt 0:00:00]} Nxb4 {[%emt 0:06:41]} 21. Bxb4 {[%emt 0:00:00]} Bxb4 {[%emt 0:00:04]} 22. Rxe5 {[%emt 0:00:00]} Rxe5 {[%emt 0:02:11]} 23. Nxe5 {[%emt 0:00:00]} Re8 {[%emt 0:04:39]} 24. d4 {[%emt 0:00:00]} Bd6 {[%emt 0:00:37] [#]} 25. Nf3 $16 {[%emt 0:00:00]} (25. Bb3 $142 $1 {[%cal Rb3f7]} Bxe5 26. dxe5 Rxe5 27. Bc4) 25... Nd5 {[%emt 0:00:47]} 26. Bb3 {[%emt 0:00:00]} Nb4 {[%emt 0:00:56]} 27. Ra1 {[%emt 0:00:00]} c5 {[%emt 0:03:09]} 28. dxc5 {[%emt 0:07:53]} Bxc5 {[%emt 0:00:01]} 29. Bc4 {[%emt 0:00:16]} Kf8 {[%emt 0:01:09]} 30. Rc1 {[%emt 0:00:54]} f6 {[%emt 0:01:13]} 31. Bf1 {[%emt 0:05:09]} Bd6 {[%emt 0:00:32]} 32. g3 {[%emt 0:00:11]} Rd8 {[%emt 0:00:46]} 33. h4 {[%emt 0:02:33]} Rd7 {[%emt 0:00:07]} 34. Rc8+ {[%emt 0:01:22]} Ke7 {[%emt 0:00:09]} 35. Rg8 {[%emt 0:05:52]} Ke6 {[%emt 0:00:14]} 36. Ra8 {[%emt 0:06:41]} Rb7 {[%emt 0:00:14]} 37. b3 {[%emt 0:01:07]} Bc5 {[%emt 0:00:03]} 38. Rc8 {[%emt 0:02:10]} Kd6 {[%emt 0:00:10]} 39. h5 {[%emt 0:00:56]} Nc6 {[%emt 0:00:02]} 40. Nd2 {[%emt 0:02:09]} Nxa5 {[%emt 0:00:08]} 41. Ne4+ {[%emt 0:00:14]} Kd7 {[%emt 0:00:27]} 42. Bh3+ {[%emt 0:01:53]} 1-0

[Event "Gibraltar Challengers A 2019"]
[Site "Caleta"]
[Date "2019.01.23"]
[Round "3"]
[White "Lacrosse, Marc"]
[Black "Kozarcanin, Sead"]
[Result "1-0"]
[ECO "D13"]
[WhiteElo "2182"]
[BlackElo "2048"]
[Annotator "NA"]
[PlyCount "109"]
[EventDate "2019.01.18"]
[EventType "swiss"]
[EventCountry "GGB"]
[SourceTitle "playchess.com"]
[Source "ChessBase"]
[SourceQuality "1"]
[TimeControl "6600+10"]

1. d4 {[%emt 0:00:23]} d5 {[%emt 0:00:00]} 2. c4 {[%emt 0:00:09]} c6 {[%emt 0:00:00]} 3. Nf3 {[%emt 0:00:29]} Nf6 {[%emt 0:00:00]} 4. Nc3 {[%emt 0:00:36]} a6 {[%emt 0:00:00]} 5. cxd5 {[%emt 0:01:41]} cxd5 {[%emt 0:00:00]} 6. Bf4 {[%emt 0:00:30]} Nc6 {[%emt 0:01:58]} 7. Rc1 {[%emt 0:00:45]} Bf5 {[%emt 0:08:04]} 8. e3 {[%emt 0:00:48]} e6 {[%emt 0:00:17]} 9. Bd3 {[%emt 0:04:51]} Bxd3 {[%emt 0:00:27]} 10. Qxd3 {[%emt 0:00:06]} Bd6 {[%emt 0:01:26]} 11. Bxd6 {[%emt 0:00:44]} Qxd6 {[%emt 0:00:03]} 12. O-O {[%emt 0:00:21]} O-O {[%emt 0:00:03]} 13. Na4 {[%emt 0:04:47]} Ne4 {[%emt 0:08:36]} 14. Nc5 {[%emt 0:05:53]} Nxc5 {[%emt 0:00:18]} 15. Rxc5 {[%emt 0:01:30] D13: Slav Defence: Exchange variation without ...Bf5} Rfc8 {[%emt 0:15:01]} 16. Rfc1 {[%emt 0:02:53]} Ne7 {[%emt 0:01:45] LiveBook: 12 Games} 17. b4 {[%emt 0:04:15]} (17. Rxc8+ Rxc8 18. Rxc8+ Nxc8 19. Qc3 Ne7 20. Ne5 f6 21. Nd3 b6 22. a4 a5 23. b4 axb4 24. Nxb4 Kf7 25. h3 Qd7 26. Qc2 Qd6 27. Qc3 Qd7 28. Qc2 Qd6 29. Qc3 Qd7 {½-½ (29) Radjabov,T (2713)-Mamedyarov,S (2757) Beijing 2013}) 17... h6 $146 {[%emt 0:03:24]} ({Predecessor:} 17... Qd8 18. Qc2 b6 19. Rc7 Rxc7 20. Qxc7 Qxc7 21. Rxc7 Rc8 22. Rxc8+ Nxc8 {½-½ (22) Patriarca,L (2317)-Butti,E (2218) Asuncion 2001}) 18. h3 {[%emt 0:01:49]} b6 {[%emt 0:05:58]} 19. Rxc8+ {[%emt 0:01:57]} Nxc8 {[%emt 0:00:03]} 20. Qc3 {[%emt 0:09:01]} a5 {[%emt 0:03:13]} 21. Ne5 {[%emt 0:05:32]} Ne7 {[%emt 0:09:56]} 22. b5 {[%emt 0:02:13]} f6 {[%emt 0:02:56]} 23. Qc7 {[%emt 0:04:26]} Rd8 {[%emt 0:02:59]} 24. Qxd6 {[%emt 0:06:23]} Rxd6 {[%emt 0:00:02] [#]} 25. Rc7 $1 {[%emt 0:03:11]} Kf8 {[%emt 0:02:09]} 26. Nd3 {[%emt 0:02:39]} g5 {[%emt 0:02:24]} 27. g4 {[%emt 0:02:09]} Ke8 {[%emt 0:00:31]} 28. Rb7 {[%emt 0:00:18]} Ng6 {[%emt 0:04:59]} 29. Kf1 {[%emt 0:03:58]} Nf8 {[%emt 0:00:25]} 30. Ke2 {[%emt 0:01:56]} Nd7 $18 {[%emt 0:00:37]} 31. Ra7 {[%emt 0:02:04]} Nf8 {[%emt 0:00:32]} 32. Nc5 {[%emt 0:02:42]} bxc5 {[%emt 0:02:22]} 33. dxc5 {[%emt 0:00:05]} Rd8 {[%emt 0:04:21]} 34. c6 {[%emt 0:00:45]} Rc8 {[%emt 0:05:43]} 35. a4 {[%emt 0:04:04]} Ng6 {[%emt 0:00:25]} 36. b6 {[%emt 0:04:03]} Rxc6 {[%emt 0:10:36]} 37. b7 {[%emt 0:01:18]} Rc2+ {[%emt 0:00:19]} 38. Kd3 {[%emt 0:01:12]} Rb2 {[%emt 0:00:02]} 39. Kc3 {[%emt 0:01:36]} Rb6 {[%emt 0:01:10]} 40. Ra8+ {[%emt 0:00:09]} Kd7 {[%emt 0:00:23]} 41. b8=Q {[%emt 0:00:07]} Rxb8 {[%emt 0:00:16]} 42. Rxb8 {[%emt 0:00:08]} Ne5 {[%emt 0:00:06]} 43. Rh8 {[%emt 0:01:02]} Nc4 {[%emt 0:00:54]} 44. Rxh6 {[%emt 0:00:30]} Ke7 {[%emt 0:00:27]} 45. Rh8 {[%emt 0:06:47]} Kd6 {[%emt 0:00:30]} 46. h4 {[%emt 0:02:31]} gxh4 {[%emt 0:00:40]} 47. Rxh4 {[%emt 0:00:11]} Nb6 {[%emt 0:00:33]} 48. Kb3 {[%emt 0:00:25]} Nd7 {[%emt 0:00:07]} 49. f4 {[%emt 0:00:49]} Nc5+ {[%emt 0:00:09]} 50. Ka3 {[%emt 0:00:09]} Ne4 {[%emt 0:00:25]} 51. Rh7 {[%emt 0:00:30]} Nd2 {[%emt 0:00:07]} 52. g5 {[%emt 0:00:58]} fxg5 {[%emt 0:00:12]} 53. fxg5 {[%emt 0:00:03]} Ke5 {[%emt 0:00:58]} 54. Rf7 {[%emt 0:00:30]} Nc4+ {[%emt 0:00:25]} 55. Kb3 {[%emt 0:00:36]} 1-0

[Event "Gibraltar Challengers A 2019"]
[Site "Caleta"]
[Date "2019.01.23"]
[Round "3"]
[White "Crespo, Eugenio"]
[Black "Dhanwani, Aditya"]
[Result "1-0"]
[ECO "C41"]
[WhiteElo "2169"]
[BlackElo "1497"]
[Annotator "NA"]
[PlyCount "50"]
[EventDate "2019.01.18"]
[EventType "swiss"]
[EventCountry "GGB"]
[SourceTitle "playchess.com"]
[Source "ChessBase"]
[SourceQuality "1"]
[TimeControl "6600+10"]

1. e4 {[%emt 0:00:00]} d6 {[%emt 0:01:08]} 2. d4 {[%emt 0:00:02]} Nf6 {[%emt 0:00:29]} 3. Nc3 {[%emt 0:00:06]} e5 {[%emt 0:00:54]} 4. Nf3 {[%emt 0:00:06]} exd4 {[%emt 0:01:57]} 5. Nxd4 {[%emt 0:00:06]} Be7 {[%emt 0:01:37]} 6. Be2 {[%emt 0:04:55]} O-O {[%emt 0:03:51]} 7. g4 {[%emt 0:13:46] LiveBook: 6 Games} Ne8 {[%emt 0:20:38]} (7... d5 $11 {remains equal.}) 8. Be3 {[%emt 0:06:28]} a6 {[%emt 0:07:40]} 9. Qd2 {[%emt 0:01:47]} Nd7 {[%emt 0:03:08]} 10. O-O-O {[%emt 0:00:49]} Ne5 {[%emt 0:04:09]} (10... Nb6 $16 {is a better defense.}) 11. f4 {[%emt 0:05:53]} Nxg4 {[%emt 0:04:20]} 12. Bxg4 $11 {[%emt 0:01:03]} Bxg4 {[%emt 0:03:27]} 13. Rdg1 {[%emt 0:00:00]} Bd7 {[%emt 0:15:13]} 14. h4 {[%emt 0:02:00]} c5 {[%emt 0:01:15]} 15. Nf3 {[%emt 0:02:33]} b5 {[%emt 0:09:48]} 16. h5 {[%emt 0:05:55]} b4 {[%emt 0:09:02]} 17. Nd5 {[%emt 0:00:15]} Nf6 {[%emt 0:03:58]} 18. Qg2 {[%emt 0:01:43]} Ne8 {[%emt 0:05:07]} 19. f5 {[%emt 0:02:35]} Kh8 {[%emt 0:04:25]} 20. Rh3 {[%emt 0:13:37]} f6 {[%emt 0:02:54]} 21. Nh4 {[%emt 0:01:07]} Rf7 {[%emt 0:01:34]} 22. Ng6+ {[%emt 0:01:22]} Kg8 {[%emt 0:00:17]} 23. Ngxe7+ {[%emt 0:00:36]} Rxe7 {[%emt 0:00:17]} 24. Nxe7+ {[%emt 0:01:05]} Qxe7 {[%emt 0:00:07]} 25. Rg3 {[%emt 0:00:27]} Kh8 {[%emt 0:00:45]} 1-0

[Event "Gibraltar Challengers A 2019"]
[Site "Caleta"]
[Date "2019.01.23"]
[Round "3"]
[White "Gonzalez Gonzalez, Alfonso"]
[Black "Pinho, Paulo"]
[Result "0-1"]
[ECO "A45"]
[WhiteElo "2160"]
[BlackElo "2205"]
[Annotator "NA"]
[PlyCount "70"]
[EventDate "2019.01.18"]
[EventType "swiss"]
[EventCountry "GGB"]
[SourceTitle "playchess.com"]
[Source "ChessBase"]
[SourceQuality "1"]
[TimeControl "6600+10"]

{[%evp 8,67,0,-25,0,0,32767,32767,-13,32767,32767,32767,47,51,32767,43,87,70,71,60,126,132,118,32767,32767,33,32767,32767,32767,-228,32767,-228,-211,-217,-237,32767,-244,-331,-341,32767,-335,-331,-308,-317,32767,32767,-336,-364,32767,-361,-418,-489,32767,32767,-517,-852,32767,-29998,32767,32767,-29997,-29998]} 1. d4 {[%emt 0:00:00]} Nf6 {[%emt 0:00:02]} 2. Bg5 {[%emt 0:00:00]} Ne4 {[%emt 0:00:12]} 3. Bh4 {[%emt 0:00:03]} g5 {[%emt 0:00:26]} 4. f3 {[%emt 0:00:05]} gxh4 {[%emt 0:00:10]} 5. fxe4 {[%emt 0:00:06]} c5 {[%emt 0:00:08]} 6. e3 {[%emt 0:00:05]} Bh6 {[%emt 0:00:38]} 7. Qd3 {[%emt 0:00:07] A45: Trompowsky Attack} (7. Kf2 cxd4 8. exd4 e5 9. Qh5 Qf6+ 10. Nf3 exd4 11. Bc4 Be3+ 12. Ke1 Nc6 13. Rf1 Qg6 14. Qd5 Ne7 15. Qe5 f6 16. Qa5 {½-½ (42) Sedlak,N (2553)-Vorobiov,E (2577) Vrsac 2008}) 7... Nc6 {[%emt 0:10:42] LiveBook: 6 Games} 8. c3 {[%emt 0:00:15]} Qb6 {[%emt 0:02:24]} 9. b3 {[%emt 0:00:06]} c4 {[%emt 0:05:08]} (9... e5 $11) 10. Qxc4 {[%emt 0:00:12]} Bxe3 {[%emt 0:00:10]} 11. Nf3 {[%emt 0:02:44]} d6 $146 {[%emt 0:02:33]} ({Predecessor:} 11... h3 12. g3 d6 13. Qd3 Bh6 14. d5 Nb8 {½-½ (37) Sabol,M (2354)-Chojnacki,K (2426) Litomysl 2008}) 12. Qd3 {[%emt 0:01:44]} Bh6 {[%emt 0:02:36]} 13. Nxh4 {[%emt 0:02:11]} Bd7 {[%emt 0:21:23]} (13... O-O $14) 14. Nd2 {[%emt 0:01:31]} Rc8 {[%emt 0:16:02]} 15. Nc4 {[%emt 0:03:45]} Qa6 {[%emt 0:00:32] [#]} 16. Qf3 {[%emt 0:09:59]} (16. Be2 $1 $18) 16... b5 {[%emt 0:00:41]} 17. Ne3 {[%emt 0:00:24]} Qa5 {[%emt 0:07:04]} 18. b4 $2 {[%emt 0:12:08]} (18. Nd5 $1 $15 Nxd4 19. Qd1) 18... Nxb4 {[%emt 0:00:34]} 19. cxb4 {[%emt 0:05:43]} Qxb4+ {[%emt 0:00:11]} 20. Kf2 {[%emt 0:00:16] [#]} Qd2+ $1 {[%emt 0:04:49]} ({Resist} 20... Qxd4 21. Re1 $17) 21. Be2 {[%emt 0:00:30]} Rc3 {[%emt 0:00:08]} 22. Nhf5 {[%emt 0:00:32]} Bxf5 $1 {[%emt 0:00:18] Pin} 23. Nxf5 {[%emt 0:00:05]} Rxf3+ {[%emt 0:00:58]} 24. gxf3 {[%emt 0:00:08]} e6 {[%emt 0:07:12]} 25. Rad1 {[%emt 0:00:32]} Qf4 {[%emt 0:00:09]} 26. Bxb5+ {[%emt 0:02:02]} Kd8 {[%emt 0:01:51]} 27. Nxh6 {[%emt 0:02:05]} Qxh6 {[%emt 0:00:14]} 28. Rhg1 {[%emt 0:06:18]} Ke7 {[%emt 0:00:44]} 29. d5 {[%emt 0:03:55]} Rb8 {[%emt 0:01:16]} 30. a4 {[%emt 0:00:10]} a6 {[%emt 0:00:40]} 31. Bxa6 {[%emt 0:01:04]} (31. Be2 $142 exd5 32. Rxd5) 31... Rb2+ {[%emt 0:01:28]} 32. Kg3 {[%emt 0:00:49]} Qxh2+ {[%emt 0:02:18]} 33. Kg4 {[%emt 0:00:05]} Kf6 {[%emt 0:01:31]} 34. f4 {[%emt 0:00:52]} h5+ {[%emt 0:00:20]} 35. Kf3 {[%emt 0:00:04]} Qf2# {[%emt 0:00:13]} 0-1